Cogmind - Beta 9.5 @@@ ROGUE MODE // 2020.04.08 @ 18:45:26 Player: Vectis Result: Destroyed by G-47 Trooper with Backup Laser III Performance ------------- Evolutions (2) 1000 Regions Visited (4) 800 Robots Destroyed (59) 295 Value Destroyed (1463) 1463 Prototype IDs (0) 0 Alien Tech Used (0) 0 Bonus (0) 0 TOTAL SCORE: 3558 Bonus ------- None Cogmind --------- Core Integrity 0/550 Matter 300/300 Energy 275/275 System Corruption 0% Temperature Cool (9) Movement Walking (120) Location -8/Materials Parts ------- > --- POWER (1) -------- Deuterium Engine > --- PROPULSION (4) --- Aluminum Leg Aluminum Leg Aluminum Leg Aluminum Leg > --- UTILITY (4) ------ Large Storage Unit Core Shielding Improved Propulsion Shielding Hacking Suite > --- WEAPON (2) ------- Backup Laser I Scythe > --- INVENTORY (10) --- Light Ion Engine Improved Ion Engine Light Nuclear Core Light Treads Heat Sink Heat Sink Large Storage Unit High-capacity Battery (400) Melee Analysis Suite Peak State ------------ > --- POWER ------------ Light Nuclear Core > --- PROPULSION ------- Carbon-fiber Leg Carbon-fiber Leg Carbon-fiber Leg Carbon-fiber Leg > --- UTILITY ---------- Large Storage Unit Light Armor Plating Hacking Suite Hacking Suite > --- WEAPON ----------- Ion Cannon Scythe > --- INVENTORY -------- Light Nuclear Core Aluminum Leg Carbon-fiber Leg Heat Sink Heat Sink Large Storage Unit High-capacity Battery [Rating: 30] Favorites ----------- Power Ion Engine Engine Ion Engine Power Core Light Nuclear Core Propulsion Light Treads Treads Light Treads Leg Aluminum Leg Utility Hacking Suite Device Heat Sink Storage Large Storage Unit Processor Improved Targeting Computer Hackware Hacking Suite Protection Light Armor Plating Weapon Beam Cannon Energy Gun Medium Laser Energy Cannon Beam Cannon Ballistic Gun Assault Rifle Launcher Grenade Launcher Impact Weapon Maul Slashing Weapon Scythe Build | -11 -10 -10 -9 -8 ------- Run | Scr Mat Min Mat Mat Slots Evolved 4 | . . . 2 2 Power . | . . . . . Propulsion 2 | . . . 1 1 Utility 2 | . . . 1 1 Weapon . | . . . . . Parts Attached 67 | 7 2 1 21 36 Power 8 | 1 . 1 1 5 Engine 6 | 1 . 1 1 3 Core 2 | . . . . 2 Reactor . | . . . . . Propulsion 23 | 2 . . 6 15 Treads 10 | . . . 6 4 Leg 13 | 2 . . . 11 Wheel . | . . . . . Hover . | . . . . . Flight . | . . . . . Utility 18 | 2 . . 7 9 Device 7 | 1 . . 3 3 Storage 2 | 1 . . 1 . Processor 3 | . . . 3 . Hackware 2 | . . . . 2 Protection 4 | . . . . 4 Artifact . | . . . . . Weapon 18 | 2 2 . 7 7 Energy Gun 2 | 2 . . . . Energy Cannon 9 | . 2 . 4 3 Ballistic Gun 1 | . . . . 1 Ballistic Cannon . | . . . . . Launcher 2 | . . . 1 1 Special Weapon . | . . . . . Impact Weapon 3 | . . . 2 1 Slashing Weapon 1 | . . . . 1 Piercing Weapon . | . . . . . Special Melee Weapon . | . . . . . Unidentified Prototypes . | . . . . . Parts Lost 25 | . . 3 2 20 Power 5 | . . 1 . 4 Propulsion 8 | . . . . 8 Utility 5 | . . 1 1 3 Weapon 7 | . . 1 1 5 Highest Loss Streak 9 | . . 2 1 9 Average Slot Usage (%) 91 | . 100 88 96 87 Engine 8 | . 14 13 11 5 Treads 13 | . . . 23 11 Leg 17 | . 28 28 8 19 Device 6 | . 14 4 9 4 Storage 10 | . 14 14 11 9 Processor 4 | . . . 11 . Hackware 7 | . . . . 16 Protection 2 | . . . . 4 Energy Cannon 13 | . 17 28 18 4 Impact Weapon 2 | . . . 1 4 Slashing Weapon 2 | . . . . 4 Naked Turns . | . . . . . Heaviest Build 32 | 13 16 16 30 32 Greatest Support 80 | 20 20 20 60 80 Greatest Overweight (x) 2 | . . . . 2 Average Overweight (x) . | . . . . . Largest Inventory Capacity 10 | 6 6 6 10 10 Average Capacity 7 | 5 6 6 6 10 Most Carried 10 | 2 6 6 10 10 Average Carried 6 | 1 4 5 6 7 Final Capacity 10 | 6 6 6 10 10 Final Carried 10 | 2 6 5 10 9 Class Distribution -------------------- 54% | Mutant 27% | Hacker-Mutant 18% | Scavenger-Mutant Dominant Class ---------------- Mutant | -10/Materials Mutant | -10/Mines Mutant | -9/Materials Hacker-Mutant | -8/Materials Resources | -11 -10 -10 -9 -8 ----------- Run | Scr Mat Min Mat Mat Matter Collected 827 | 270 20 10 205 322 Remotely 94 | 74 20 . . . Salvage Created 2389 | 85 . 54 768 1482 Parts 109 | 3 . . 44 62 Haulers Intercepted 2 | . . . . 2 Recyclers Shooed . | . . . . . Parts Field Recycled . | . . . . . Retrieved Matter . | . . . . . Parts Self-Destructed . | . . . . . Prevented . | . . . . . Kills | -11 -10 -10 -9 -8 ------- Run | Scr Mat Min Mat Mat Combat Hostiles Destroyed 36 | . . 1 15 20 Melee 15 | . . . 1 14 Cannons 14 | . . 1 11 2 AOE 2 | . . . . 2 Classes Destroyed 12 | 2 . . 7 3 Worker 8 | . . . 3 5 Tunneler 1 | 1 . . . . Hauler 2 | . . . . 2 Recycler 6 | 1 . . 1 4 Mechanic 1 | . . . 1 . Operator 2 | . . . 1 1 Watcher 3 | . . . 1 2 Swarmer 8 | . . . 5 3 Grunt 14 | . . . 3 11 Duelist 1 | . . . . 1 Sentry 11 | . . . 7 4 Hunter 1 | . . . . 1 Best Kill Streak 8 | 2 . 1 5 8 Combat Bots Only 5 | . . 1 5 4 Max Kills in Single Turn 2 | 1 . 1 2 2 Gunslinging . | . . . . . Exploded 2 | . . . . 2 Melee 1 | . . . 1 1 Uniques/NPCs Destroyed 1 | . . 1 . . YI-UF0 (-10/Mines) Combat | -11 -10 -10 -9 -8 -------- Run | Scr Mat Min Mat Mat Damage Taken 3743 | . . 273 739 2731 Core 686 | . . 40 90 556 Absorbed by Shields . | . . . . . Core Remaining (%) 87 | 100 . 84 77 . Volleys Fired 88 | 5 . 5 49 29 Largest 2 | 2 . 2 2 2 Hottest 120 | 90 . 120 120 120 Shots Fired 145 | 10 . 10 90 35 Gun 14 | 10 . . . 4 Cannon 130 | . . 10 90 30 Launcher 1 | . . . . 1 Special . | . . . . . Kinetic 4 | . . . . 4 Thermal 140 | 10 . 10 90 30 Explosive 1 | . . . . 1 Electromagnetic . | . . . . . Robot Hit Streak 27 | 3 . 9 27 21 Robot Miss Streak 4 | 3 . 1 4 2 Penetration Max . | . . . . . Secondary Targets . | . . . . . Shots Hit Robots 206 | 5 . 8 77 116 Core Hits 67 | 3 . 2 26 36 Critical Hits 2 | . . . 1 1 Critical Kills 2 | . . . 1 1 Critical Parts Destroyed . | . . . . . Melee Attacks 127 | . . . 11 116 Impact 45 | . . . 11 34 Slashing 82 | . . . . 82 Piercing . | . . . . . Sneak Attacks 18 | . . . 1 17 Combat Hostiles . | . . . . . Follow-up Attacks . | . . . . . Damage Inflicted 5823 | 60 . 159 1555 4049 Guns 83 | 60 . . . 23 Cannons 1888 | . . 159 1255 474 Explosions 73 | . . . . 73 Melee 3779 | . . . 300 3479 Ramming . | . . . . . Kinetic 23 | . . . . 23 Thermal 1948 | 60 . 159 1255 474 Explosive 73 | . . . . 73 Electromagnetic . | . . . . . Impact 1401 | . . . 300 1101 Slashing 2378 | . . . . 2378 Piercing . | . . . . . Highest Corruption . | . . . . . Average Corruption . | . . . . . Corruption Purged . | . . . . . Overload Shots . | . . . . . Overflow Damage 482 | . . . 42 440 Projectiles 6 | . . . 5 1 Explosions . | . . . . . Melee 476 | . . . 37 439 Knockbacks 7 | . . . 1 6 Impact 7 | . . . 1 6 Kinetic . | . . . . . Secondary . | . . . . . Self-Inflicted Damage 10 | . . . . 10 Shots 1 | . . . . 1 Rammed . | . . . . . Targets Rammed . | . . . . . Kicked . | . . . . . Crushed . | . . . . . Highest Temperature 233 | 90 . 230 233 162 Average Temperature 71 | 41 . 120 79 42 Received Heat Transfer 1344 | . . 39 207 1098 Effects 1 | . . 1 . . Interference 1 | . . 1 . . Siege Activations . | . . . . . Robots Corrupted . | . . . . . Combat Hostiles . | . . . . . Parts Fried 9 | . . . 4 5 Impact Corruptions 10 | . . . 2 8 Robots Melted 1 | . . . 1 . Combat Hostiles 1 | . . . 1 . Parts Melted 18 | 1 . 2 15 . Heat Transferred 4046 | 161 . 333 2664 888 Parts Sabotaged . | . . . . . Parts Stolen . | . . . . . Parts Stripped . | . . . . . Power Chain Reactions . | . . . . . Missiles Intercepted . | . . . . . Alert | -11 -10 -10 -9 -8 ------- Run | Scr Mat Min Mat Mat Peak Influence 396 | 10 6 5 396 275 Average Influence 126 | 3 6 . 188 151 Maximum Alert Level 1 | . . . 1 1 Low Security (%) 72 | 100 100 100 48 72 Level 1 27 | . . . 51 27 Level 2 . | . . . . . Level 3 . | . . . . . Level 4 . | . . . . . Level 5 . | . . . . . High Security . | . . . . . Max Security . | . . . . . Squads Dispatched 10 | . 1 . 3 6 Investigation 4 | . . . 1 3 Extermination . | . . . . . Reinforcement 6 | . 1 . 2 3 Assault . | . . . . . Garrison . | . . . . . Intercept . | . . . . . Construction Impeded . | . . . . . Haulers Reinforced . | . . . . . Stealth | -11 -10 -10 -9 -8 --------- Run | Scr Mat Min Mat Mat Distress Signals 5 | . 1 . 1 3 Communications Jammed . | . . . . . Distress Signals . | . . . . . Times Spotted 80 | . 7 5 20 48 Peak Tracking Total 8 | . 7 3 5 8 Tactical Retreats 6 | . . . 1 5 Traps | -11 -10 -10 -9 -8 ------- Run | Scr Mat Min Mat Mat Traps Triggered . | . . . . . Indirectly . | . . . . . Trap Hack Attempts . | . . . . . Triggered . | . . . . . Disarmed . | . . . . . Reprogrammed . | . . . . . Reused . | . . . . . Traps Extracted . | . . . . . Installed . | . . . . . Triggered . | . . . . . Machines | -11 -10 -10 -9 -8 ---------- Run | Scr Mat Min Mat Mat Machines Disabled . | . . . . . Max in Single Turn . | . . . . . Machines Sabotaged . | . . . . . Garrisons Compromised . | . . . . . Overloaded Fab Kills . | . . . . . Fab Network Shutdowns . | . . . . . Hacking | -11 -10 -10 -9 -8 --------- Run | Scr Mat Min Mat Mat Machines Accessed 14 | . 3 . 6 5 Terminals 11 | . 3 . 4 4 Fabricators . | . . . . . Repair Stations 2 | . . . 1 1 Recycling Units . | . . . . . Scanalyzers 1 | . . . 1 . Garrison Access . | . . . . . Total Hacks 37 | . 9 . 14 14 Successful 14 | . 1 . 7 6 Failed 23 | . 8 . 7 8 Catastrophic 6 | . 1 . 2 3 Database Lockouts . | . . . . . Manual 13 | . 4 . 4 5 Terminals 28 | . 9 . 8 11 Fabricators . | . . . . . Repair Stations 8 | . . . 5 3 Recycling Units . | . . . . . Scanalyzers 1 | . . . 1 . Garrison Access . | . . . . . Terminal Hacks 6 | . 1 . 2 3 Unreport Threat 3 | . . . . 3 Locate Traps 1 | . . . 1 . Recall Reinforcements 1 | . . . 1 . Zone Layout 1 | . 1 . . . Fabricator Hacks . | . . . . . Repair Station Hacks 7 | . . . 4 3 Scan Component 3 | . . . 2 1 Repair 3 | . . . 2 1 Refit 1 | . . . . 1 Recycling Unit Hacks . | . . . . . Scanalyzer . | . . . . . Garrison Access Hacks . | . . . . . Unauthorized Hacks 2 | . . . 2 . Terminals . | . . . . . Fabricators . | . . . . . Repair Stations . | . . . . . Recycling Units . | . . . . . Scanalyzers 1 | . . . 1 . Extract 1 | . . . 1 . Garrison Access . | . . . . . Data Cores Recovered . | . . . . . Used . | . . . . . Hacking Detections 13 | . 3 . 5 5 Full Trace Events 2 | . . . . 2 Feedback Events . | . . . . . Feedback Blocked . | . . . . . Robot Schematics Acquired . | . . . . . Robots Built . | . . . . . Matter . | . . . . . Time . | . . . . . Total Robot Build Rating . | . . . . . Part Schematics Acquired 8 | . . . 8 . Parts Built . | . . . . . Matter . | . . . . . Time . | . . . . . Total Part Build Rating . | . . . . . Parts Repaired 2 | . . . 2 . Time 90 | . . . 52 38 Parts Recycled . | . . . . . Recycled Matter . | . . . . . Retrieved Matter . | . . . . . Retrieved Components . | . . . . . Parts Scanalyzed . | . . . . . Part Schematics Acquired . | . . . . . Parts Damaged . | . . . . . Bothacking | -11 -10 -10 -9 -8 ------------ Run | Scr Mat Min Mat Mat Used RIF Installer . | . . . . . Robots Hacked . | . . . . . Non-combat . | . . . . . Combat . | . . . . . Robot Hacks Applied . | . . . . . Relay Couplers Released . | . . . . . Robots Rewired . | . . . . . Allies Hacked . | . . . . . Hacks Repelled . | . . . . . Allies | -11 -10 -10 -9 -8 -------- Run | Scr Mat Min Mat Mat Total Allies . | . . . . . Largest Group . | . . . . . Highest-Rated Group . | . . . . . Highest-Rated Ally . | . . . . . Total Orders . | . . . . . Ally Attacks . | . . . . . Total Damage . | . . . . . Kills . | . . . . . Allies Corrupted . | . . . . . Allies Melted . | . . . . . Intel | -11 -10 -10 -9 -8 ------- Run | Scr Mat Min Mat Mat Robot Analysis Total . | . . . . . Derelict Logs Recovered . | . . . . . Drone Launches . | . . . . . Drone Recoveries . | . . . . . Exploration | -11 -10 -10 -9 -8 ------------- Run | Scr Mat Min Mat Mat Turns Passed 2225 | 92 162 294 698 979 Spaces Moved 1118 | 56 128 228 332 374 Core 3 | 3 . . . . Treads 320 | . . . 190 130 Legs 795 | 53 128 228 142 244 Wheels . | . . . . . Hover . | . . . . . Flight . | . . . . . Fastest Speed 50 | 50 120 120 120 120 Average Speed 132 | 116 120 120 142 137 Slowest Speed 180 | 120 120 120 160 180 Overloaded Moves . | . . . . . Propulsion Burnouts . | . . . . . Robots Hopped . | . . . . . Cave-ins Triggered . | . . . . . Exploration Rate (%) 27 | 4 25 41 27 41 Regions Visited 4 Branch Regions 1 Pre-discovered Areas . | . . . . . Known Exits Taken . | . . . . . Unknown Exits Taken 4 | 1 1 1 1 . Scrap Searched . | . . . . . Spaces Dug 2 | . . . 1 1 Terrain Destroyed 12 | . . . 1 11 Melee 2 | . . . 1 1 Projectile 2 | . . . . 2 AOE 8 | . . . . 8 Actions | -11 -10 -10 -9 -8 --------- Run | Scr Mat Min Mat Mat Total 1495 | 69 137 239 444 606 Wait 46 | . . 4 9 33 Move 1114 | 55 127 227 331 374 Hop . | . . . . . Pick Up 29 | 2 5 1 11 10 Fast Attach 29 | 7 2 . 6 14 Attach 21 | . . 1 6 14 Detach 1 | . . . 1 . Swap 17 | . . . 9 8 Drop 23 | . 3 1 11 8 Fire 88 | 5 . 5 49 29 Melee 127 | . . . 11 116 Ram . | . . . . . Kick . | . . . . . Crush . | . . . . . Escape Stasis . | . . . . . Rewire . | . . . . . Trap . | . . . . . Miscellaneous . | . . . . . Route ------- -11/Scrapyard -10/Materials -10/Mines -9/Materials (discovered 3 exits: *Mat / [*Sto x2]) -8/Materials History --------- Turn | Location | Event 10 | -11/Scrapyard | Discovered new exit (range 16) 93 | -11/Scrapyard | Entered Materials 168 | -10/Materials | Discovered new exit (range 10) 255 | -10/Materials | Entered Mines 271 | -10/Mines | Assisted by bots powering up and referring to "LRC-V3" 315 | -10/Mines | Build established: Mutant 362 | -10/Mines | Destroyed YI-UF0 533 | -10/Mines | Discovered new exit (range 5) 549 | -10/Mines | Entered Materials 549 | -9/Materials | Evolved 2 slots: Propulsion x1, Utility x1 728 | -9/Materials | Discovered new exit (range 13) 903 | -9/Materials | Repaired Beam Cannon 956 | -9/Materials | Discovered new exit (range 14) 975 | -9/Materials | Repaired Beam Cannon? 1113 | -9/Materials | Discovered new exit (range 15) 1247 | -9/Materials | Entered another Materials area 1247 | -8/Materials | Evolved 2 slots: Propulsion x1, Utility x1 1580 | -8/Materials | Lost 9 parts (1p4n1u3w) 1626 | -8/Materials | Build established: Hacker-Mutant 1800 | -8/Materials | Lost 3 parts (1p1u1w) 1993 | -8/Materials | Core integrity fell below 50% 2044 | -8/Materials | Core integrity fell below 20% 2056 | -8/Materials | Lost 7 parts (1p4n1u1w) 2226 | -8/Materials | Destroyed by G-47 Trooper with Backup Laser III Last Messages --------------- 02193_ Connecting with Repair Station... >>Scan(Carbon-fiber Leg) Scanning Carbon-fiber Leg... Ready to Repair: Carbon-fiber Leg Rating: 3 Time: 38 >>Repair Repairing Carbon-fiber Leg... ETC: 38 >>Refit Scanning configuration... Attaching: Backup Laser I x1 02201_ Acquired 10 matter. 02207_ K-01 Serf cleans the Terminal. 02207_ Sneak attack on K-01 Serf. 02207_ K-01 Serf destroyed. 02212_ Acquired Lgt. Ion Engine. 02224_ Destroyed Aluminum Leg. Map ----- +----------------------------------------------------+ | ?????????????????????????????????????????????????? | | ?????????????????????????????????????????????????? | | ?????????????????????????????????????????????????? | | ?????????????????????????????????????????????????? | | ?????????????????????????????????????????????????? | | ?????????????????????????????????????????????????? | | ?????????????????????????????????????????????????? | | ?????????????????????????????????????????????????? | | ?????????????????????????????????????????????????? | | ?????????????????????????????????????????????????? | | ?????????????????????????????????????????????????? | | ?????????????????????????????????????????????????? | | ?????????????????????????????????????????????????? | | ?????????????????????????????????????????????????? | | ?????????????????????????????????????????????????? | | ?????????????????????????????????????????????????? | | ??????????????????????#+#????????????????????????? | | ??????????????????????# #????????????????????????? | | ???????????#######????# #?###########????????????? | | ???????????# ???# #?# #????????????? | | ???????????#""" ?### ### ####?????????? | | ???????????#""" # # """#?????????? | | ???????????#""" # # ! R"#?????????? | | ???????????# [ + T + """ """#?????????? | | ???????????# # # ! """ ####?????????? | | ???????????# ! "T" # @#%"T" """ #???????????? | | ???????????# """?##o g##== % ##???????????? | | ???????????# ??# ############????????????? | | ???????????#######???# g #######?????????????????? | | ?????????????????????# !#! ]##########????????? | | ?????????????????????#!!=#% # #????????? | | ?????????????????????#[%=#%""" # #????????? | | ?????????????????????#**%#=""" # #????????? | | ?????????????????????#!% #%""" # #????????? | | ?????????????????#####%[%+%%! # #????????? | | ?????????????????#!! !%==#*" [ # #????????? | | ?????????????????#!! *=!#"T! # #????????? | | ?????????????????#[[ [=#"" # % ########## | | ?????????????????#[[ # # %%! # | | ?????????????????#[[ ############+### | | ?????????????????#[[ ^ *%% ## | | ?????????????????##### ^ + | | ?????????????????????# ^^ ## | | ????????????????###### ################ """ """ | | ????????????????#[ # #??????????????# """ """ | | ????????????????# # #??????????????# """ """ | | ????????????????# *# #########????#######+#### | | ????????????????# !%#% = | | ????????????????# !%+!! | | ????????????????# %!#! """ """ """ *** | +----------------------------------------------------+ Best States ------------- Heat Dissipation 45 Energy Generation 14 Energy Capacity 275 Matter Stores 300 Matter Capacity 300 Sight Range 16 Terrain Scan Density 10 Armor Coverage 150 Core Shielding 20 Propulsion Shielding 66 Evasion (%) 40 Targeting Accuracy 12 Recoil Reduction 4 Offensive Hacking 20 Item Schematics ----------------- Tractor Beam | -9/Materials | Extracted Hpw. Tractor Beam | -9/Materials | Extracted Shotgun | -9/Materials | Extracted Particle Cannon | -9/Materials | Extracted Med. Battery | -9/Materials | Extracted Reclamation Unit | -9/Materials | Extracted Disposable Heat Sink | -9/Materials | Extracted Mining Claw | -9/Materials | Extracted Robot Schematics ------------------ None Fabricated ------------ Nothing Alien Tech Used ----------------- None Achievements -------------- None Challenges ------------ None Game ------ Seed HardcellSigixReplicator Manual? 0 Play Time 00:29:14 Cumulative 20.5 hours Start 2020.04.08 @ 18:18:24 End 2020.04.08 @ 18:45:26 Sessions 1 Manual Loads 0 Difficulty Rogue Special Mode None Game No. 7 Rogue 7 Adventurer 0 Explorer 0 Win Type - Total 1 Types 0/0/0/1/0/0/0 Lore% 22 Gallery% 32 Achievement% 34 Wizard Run 0 Options --------- ASCII 0 Keyboard 0 Movement Numpad Keybinds 0 Fullscreen 1 Font 18/SmallcapsGlow Map View 76x50 Tactical HUD 1 Map Filters NONE Filters NONE Steam 1 RUN: e936c20f-5017-45bd-bc81-5792bad1f023